fUSD/lending_fUSD_20260202
["ID","MTS","AMOUNT","RATE_DAILY","PERIOD"]
[404270124,1770019845002,-541.62569807,0.00013973,2]
[404270125,1770019845011,-500.0,0.00013973,2]
[404270126,1770019845021,-500.0,0.00013973,2]
[404270127,1770019845030,-500.0,0.00013973,2]
[404270128,1770019845039,-500.0,0.00013973,2]
[404270129,1770019845048,-500.0,0.00013973,2]
[404270130,1770019845058,-501.53662804,0.00013973,2]
[404270131,1770019845068,-500.0,0.00013973,2]
[404270132,1770019845077,-500.0,0.00013973,2]
[404270133,1770019845087,-500.0,0.00013973,2]
[404270134,1770019845096,-500.0,0.00013973,2]
[404270135,1770019845106,-500.12230816,0.00013973,2]
[404270136,1770019845116,-500.0,0.00013973,2]
[404270137,1770019845125,-500.0,0.00014119,2]
[404270138,1770019845137,-20357.73017596,0.00014233,2]
[404270139,1770019845147,-500.0,0.00014274,2]
[404270140,1770019845157,-2013.16,0.00014384,2]
[404270141,1770019845167,-500.0,0.00014393,2]
[404270142,1770019845176,-1000.0,0.00014521,2]
[404270143,1770019845185,-1000.0,0.00014521,2]
[404270144,1770019845195,-501.171316,0.00014521,2]
[404270145,1770019845204,-669.47739756,0.00014521,2]
[404270146,1770019845215,-233.72893135,0.00014521,2]
[404270147,1770019845224,-1000.0,0.00014521,2]
[404270148,1770019845234,-506.79391477,0.00014521,2]
[404270149,1770019845243,-1000.0,0.00014521,2]
[404270150,1770019845253,-354.38080813,0.00014521,2]
[404270151,1770019845263,-1000.0,0.00014521,2]
[404270152,1770019845272,-156.95111861,0.00014521,2]
[404270153,1770019845281,-306.04439692,0.00014609,2]
[404270154,1770019845290,-500.0,0.00014667,2]
[404270155,1770019845300,-6556.37111219,0.00014699,2]
[404270156,1770019845310,-2777.47,0.00014717,2]
[404270157,1770019845319,-151.0,0.00014765,2]
[404270158,1770019845329,-745.65714443,0.00014768,2]
[404270159,1770019845339,-1967.80100159,0.00014768,2]
[404270160,1770019845349,-3471.43421771,0.00014768,2]
[404270161,1770019845358,-245.0,0.00014788,2]
[404270162,1770019845368,-250.0,0.00014821,2]
[404270163,1770019845377,-868.9,0.00014842,2]
[404270164,1770019845393,-316.57133444,0.00014941,2]
[404270165,1770019845403,-20357.73017596,0.00014963,2]
[404270166,1770019845412,-250.0,0.00015,2]
[404270167,1770019845421,-500.21,0.00015016,2]
[404270168,1770019845431,-2719.0,0.00015062,2]
[404270169,1770019845440,-1500.0,0.00015068,2]
[404270170,1770019845450,-770.24622109,0.00015068,2]
[404270171,1770019845459,-1072.82089826,0.00015068,2]
[404270172,1770019845469,-1500.0,0.00015068,2]
[404270173,1770019845479,-1500.0,0.00015068,2]
[404270174,1770019845488,-2013.16,0.00015068,2]
[404270175,1770019845498,-163.0,0.000151,2]
[404270176,1770019845507,-868.9,0.00015116,2]
[404270177,1770019845516,-989.02,0.0001539,2]
[404270178,1770019845526,-500.46237197,0.00015473,2]
[404270179,1770019845536,-163.12661798,0.00015473,2]
[404270180,1770019845545,-163.34993731,0.00015473,2]
[404270181,1770019845556,-500.0,0.00015473,2]
[404270182,1770019845568,-574.06272579,0.00015473,2]
[404270183,1770019845577,-500.0,0.00015473,2]
[404270184,1770019845590,-511.82569439,0.00015473,2]
[404270185,1770019845600,-500.0,0.00015473,2]
[404270186,1770019845610,-500.0,0.00015473,2]
[404270187,1770019845619,-500.0,0.00015473,2]
[404270188,1770019845630,-500.0,0.00015473,2]
[404270189,1770019845644,-163.46067997,0.00015473,2]
[404270190,1770019845654,-500.62768041,0.00015473,2]
[404270192,1770019845663,-501.33451157,0.00015473,2]
[404270193,1770019845673,-559.67308476,0.00015473,2]
[404270195,1770019845684,-500.6120606,0.00015473,2]
[404270196,1770019845694,-500.0,0.00015473,2]
[404270197,1770019845705,-500.0,0.00015473,2]
[404270198,1770019845715,-500.0,0.00015473,2]
[404270199,1770019845724,-500.0,0.00015473,2]
[404270200,1770019845734,-501.29169705,0.00015473,2]
[404270201,1770019845743,-500.0,0.00015473,2]
[404270202,1770019845753,-464.35211832,0.00015473,2]
[404270203,1770019845763,-486.90150068,0.00015473,2]
[404270204,1770019845778,-151.07783782,0.00015473,2]
[404270205,1770019845795,-500.40906893,0.00015473,2]
[404270206,1770019845804,-500.0,0.00015473,2]
[404270207,1770019845814,-160.54295648,0.00015473,2]
[404270208,1770019845823,-500.0,0.00015473,2]
[404270209,1770019845833,-500.0,0.00015473,2]
[404270210,1770019845842,-500.0,0.00015473,2]
[404270211,1770019845852,-500.0,0.00015473,2]
[404270212,1770019845861,-500.0,0.00015473,2]
[404270213,1770019845872,-500.0,0.00015473,2]
[404270214,1770019845882,-500.0,0.00015473,2]
[404270215,1770019845895,-500.0,0.00015473,2]
[404270216,1770019845905,-500.0,0.00015473,2]
[404270217,1770019845915,-500.0,0.00015473,2]
[404270218,1770019845925,-500.0,0.00015473,2]
[404270219,1770019845937,-200.70028911,0.00015473,2]
[404270220,1770019845946,-500.0,0.00015473,2]
[404270221,1770019845956,-501.12989903,0.00015473,2]
[404270222,1770019845966,-500.0,0.00015473,2]
[404270223,1770019845975,-161.45537985,0.00015473,2]
[404270224,1770019845985,-336.43827265,0.00015473,2]
[404270225,1770019845995,-512.94754167,0.00015473,2]
[404270226,1770019846005,-500.41005015,0.00015473,2]
[404270227,1770019846014,-500.63586771,0.00015473,2]
[404270228,1770019846024,-500.0,0.00015473,2]
[404270229,1770019846033,-550.09529227,0.00015473,2]
[404270230,1770019846042,-500.0,0.00015473,2]
[404270231,1770019846053,-500.0,0.00015473,2]
[404270232,1770019846063,-500.0,0.00015473,2]
[404270233,1770019846072,-500.0,0.00015473,2]
[404270234,1770019846082,-522.30858015,0.00015473,2]
[404270235,1770019846092,-500.0,0.00015473,2]
[404270236,1770019846101,-185.46503654,0.00015473,2]
[404270237,1770019846310,-500.0,0.00015473,2]
[404270238,1770019846322,-500.0,0.00015473,2]
[404270239,1770019846331,-500.0,0.00015473,2]
[404270240,1770019846342,-500.0,0.00015473,2]
[404270241,1770019846363,-500.0,0.00015473,2]
[404270242,1770019846379,-500.0,0.00015473,2]
[404270243,1770019846395,-500.0,0.00015473,2]
[404270244,1770019846405,-500.0,0.00015473,2]
[404270245,1770019846417,-500.0,0.00015473,2]
[404270246,1770019846428,-291.61164288,0.00015473,2]
[404270247,1770019846441,-500.0,0.00015473,2]
[404270248,1770019846451,-245.19,0.00015526,2]
[404270249,1770019846462,-277.92,0.00015527,2]
[404270250,1770019846474,-151.49674582,0.0001555,2]
[404270251,1770019846485,-322.6107,0.0001555,2]
[404270252,1770019846496,-500.0,0.0001555,2]
[404270253,1770019846506,-500.0,0.0001555,2]
[404270254,1770019846515,-500.0,0.0001555,2]
[404270255,1770019846526,-500.0,0.0001555,2]
[404270256,1770019846537,-250.0,0.0001555,2]
[404270257,1770019846548,-500.0,0.0001555,2]
[404270258,1770019846561,-250.0,0.0001555,2]
[404270259,1770019846579,-500.0,0.0001555,2]
[404270260,1770019846589,-250.0,0.0001555,2]
[404270261,1770019846600,-578.20924308,0.0001555,2]
[404270262,1770019846609,-500.0,0.0001555,2]
[404270263,1770019846619,-250.0,0.0001555,2]
[404270264,1770019846629,-500.0,0.0001555,2]
[404270265,1770019846642,-250.0,0.0001555,2]
[404270266,1770019846652,-500.0,0.0001555,2]
[404270267,1770019846662,-250.0,0.0001555,2]
[404270269,1770019846672,-500.0,0.0001555,2]
[404270270,1770019846681,-250.0,0.0001555,2]
[404270271,1770019846692,-344.38825217,0.0001555,2]
[404270272,1770019846702,-250.0,0.0001555,2]
[404270273,1770019846711,-250.0,0.0001555,2]
[404270274,1770019846721,-250.0,0.0001555,2]
[404270275,1770019846731,-250.0,0.0001555,2]
[404270277,1770019846742,-209.40437684,0.0001555,2]
[404270278,1770019846751,-209.40437684,0.0001555,2]
[404270279,1770019846761,-859.80605061,0.0001555,2]
[404270280,1770019846771,-1428.38747117,0.0001555,2]
[404270281,1770019846781,-250.0,0.0001555,2]
[404270282,1770019846790,-250.0,0.0001555,2]
[404270283,1770019846801,-250.0,0.0001555,2]
[404270285,1770019846811,-174.61919141,0.0001555,2]
[404270286,1770019846821,-250.0,0.0001555,2]
[404270287,1770019846831,-250.0,0.0001555,2]
[404270288,1770019846841,-250.0,0.0001555,2]
[404270289,1770019846851,-250.0,0.0001555,2]
[404270290,1770019846860,-250.0,0.0001555,2]
[404270291,1770019846870,-250.0,0.0001555,2]
[404270292,1770019846879,-168.90333538,0.0001555,2]
[404270293,1770019846890,-250.0,0.0001555,2]
[404270295,1770019846900,-250.0,0.0001555,2]
[404270296,1770019846910,-250.0,0.0001555,2]
[404270297,1770019846920,-250.0,0.0001555,2]
[404270298,1770019846930,-250.0,0.0001555,2]
[404270299,1770019846940,-250.0,0.0001555,2]
[404270300,1770019846950,-250.0,0.0001555,2]
[404270301,1770019846960,-250.0,0.0001555,2]
[404270302,1770019846969,-250.0,0.0001555,2]
[404270303,1770019846980,-250.0,0.0001555,2]
[404270304,1770019846990,-250.0,0.0001555,2]
[404270305,1770019847000,-250.0,0.0001555,2]
[404270306,1770019847009,-250.0,0.0001555,2]
[404270307,1770019847019,-209.40437684,0.0001555,2]
[404270308,1770019847029,-500.0,0.0001555,2]
[404270309,1770019847039,-500.0,0.0001555,2]
[404270310,1770019847048,-500.0,0.0001555,2]
[404270311,1770019847058,-500.0,0.0001555,2]
[404270312,1770019847067,-500.0,0.0001555,2]
[404270313,1770019847077,-500.0,0.0001555,2]
[404270314,1770019847087,-500.0,0.0001555,2]
[404270315,1770019847097,-500.0,0.0001555,2]
[404270316,1770019847106,-500.0,0.0001555,2]
[404270317,1770019847116,-500.0,0.0001555,2]
[404270318,1770019847126,-500.0,0.0001555,2]
[404270319,1770019847136,-721.12765535,0.0001555,2]
[404270320,1770019847146,-250.0,0.0001555,2]
[404270321,1770019847156,-250.0,0.0001555,2]
[404270322,1770019847166,-250.0,0.0001555,2]
[404270323,1770019847176,-250.0,0.0001555,2]
[404270324,1770019847185,-250.0,0.0001555,2]
[404270325,1770019847195,-250.0,0.0001555,2]
[404270326,1770019847205,-250.0,0.0001555,2]
[404270327,1770019847215,-250.0,0.0001555,2]
[404270328,1770019847224,-250.0,0.0001555,2]
[404270329,1770019847234,-250.0,0.0001555,2]
[404270330,1770019847243,-250.0,0.0001555,2]
[404270331,1770019847254,-217.15233878,0.00015605,2]
[404270332,1770019847264,-1000.0,0.00015616,2]
[404270333,1770019847274,-607.21812372,0.00015616,2]
[404270334,1770019847284,-1286.37746061,0.00015616,2]
[404270335,1770019847293,-225.18697532,0.0001566,2]
[404270336,1770019847303,-20357.73017596,0.00015692,2]
[404270337,1770019847313,-233.51889341,0.00015715,2]
[404270338,1770019847323,-2013.16,0.00015753,2]
[404270339,1770019847341,-242.15909246,0.0001577,2]
[404270340,1770019847357,-277.93,0.00015795,2]
[404270341,1770019847367,-251.11897888,0.00015825,2]
[404270342,1770019847377,-260.4103811,0.0001588,2]
[404270343,1770019847389,-163.0,0.000159,2]
[404270344,1770019847399,-163.75,0.000159,2]
[404270345,1770019847409,-270.0455652,0.00015935,2]
[404270346,1770019847418,-5000.0,0.0001596,2]
[404270347,1770019847427,-280.03725112,0.0001599,2]
[404270348,1770019847437,-502.28798495,0.00016021,2]
[404270349,1770019847446,-899.10712823,0.00016021,2]
[404270350,1770019847456,-1000.0,0.00016021,2]
[404270351,1770019847466,-1000.0,0.00016021,2]
[404270352,1770019847476,-1003.91068608,0.00016021,2]
[404270353,1770019847486,-1000.0,0.00016021,2]
[404270354,1770019847496,-1000.0,0.00016021,2]
[404270355,1770019847506,-1000.0,0.00016021,2]
[404270356,1770019847516,-1000.0,0.00016021,2]
[404270357,1770019847526,-1000.0,0.00016021,2]
[404270358,1770019847536,-501.94112039,0.00016021,2]
[404270359,1770019847546,-1000.0,0.00016021,2]
[404270360,1770019847557,-1000.0,0.00016021,2]
[404270361,1770019847578,-1000.0,0.00016021,2]
[404270362,1770019847600,-1000.0,0.00016021,2]
[404270363,1770019847620,-1000.0,0.00016021,2]
[404270364,1770019847634,-1000.0,0.00016021,2]
[404270365,1770019847646,-501.09302375,0.00016021,2]
[404270366,1770019847658,-1000.0,0.00016021,2]
[404270367,1770019847669,-1000.0,0.00016021,2]
[404270368,1770019847680,-1003.27979337,0.00016021,2]
[404270369,1770019847690,-501.89927416,0.00016021,2]
[404270370,1770019847700,-586.45296103,0.00016021,2]
[404270371,1770019847710,-1000.0,0.00016021,2]
[404270372,1770019847720,-1000.0,0.00016021,2]
[404270373,1770019847730,-1018.80564021,0.00016021,2]
[404270374,1770019847740,-1000.0,0.00016021,2]
[404270375,1770019847750,-1000.0,0.00016021,2]
[404270376,1770019847760,-501.08336444,0.00016021,2]
[404270377,1770019847770,-1000.0,0.00016021,2]
[404270378,1770019847780,-1000.0,0.00016021,2]
[404270379,1770019847790,-1000.0,0.00016021,2]
[404270380,1770019847800,-1000.0,0.00016021,2]
[404270381,1770019847811,-1000.0,0.00016021,2]
[404270382,1770019847821,-987.31307274,0.00016021,2]
[404270383,1770019847830,-1000.0,0.00016021,2]
[404270384,1770019847840,-1000.0,0.00016021,2]
[404270385,1770019847850,-1145.60955598,0.00016021,2]
[404270386,1770019847859,-1000.0,0.00016021,2]
[404270387,1770019847869,-1000.0,0.00016021,2]
[404270388,1770019847879,-1000.0,0.00016021,2]
[404270389,1770019847890,-290.39862941,0.00016045,2]
[404270390,1770019847899,-3486.16,0.00016066,2]
[404270391,1770019847910,-217.15233878,0.00016098,2]
[404270392,1770019847920,-891.61887448,0.00016098,2]
[404270393,1770019847930,-1481.23780761,0.00016098,2]
[404270394,1770019847940,-181.08010149,0.00016098,2]
[404270395,1770019847950,-217.15233878,0.00016098,2]
[404270396,1770019847960,-301.1433787,0.000161,2]
[404270397,1770019847970,-3412.42,0.00016116,2]
[404270398,1770019847980,-160.02702936,0.00016236,2]
[404270399,1770019847990,-306.04439692,0.00016254,2]
[404270400,1770019848000,-1000.0,0.00016268,2]
[404270401,1770019848010,-163.0,0.000163,2]
[404270402,1770019848020,-1000.0,0.00016374,2]
[404270403,1770019848030,-1625.0,0.000164,2]
[404270404,1770019848039,-163.0,0.000164,2]
[404270405,1770019848049,-320.0,0.000164,2]
[404270406,1770019848059,-20357.73017596,0.00016421,2]
[404270407,1770019848069,-500.21,0.00016436,2]
[404270408,1770019848079,-1872.11781497,0.00016438,2]
[404270409,1770019848088,-500.0,0.00016438,2]
[404270410,1770019848099,-419.34493254,0.00016438,2]
[404270411,1770019848109,-574.47785007,0.00016438,2]
[404270412,1770019848119,-574.47785007,0.00016438,2]
[404270413,1770019848130,-574.47785007,0.00016438,2]
[404270414,1770019848142,-574.47785007,0.00016438,2]
[404270415,1770019848152,-574.47785007,0.00016438,2]
[404270416,1770019848161,-574.47785007,0.00016438,2]
[404270417,1770019848172,-574.47785007,0.00016438,2]
[404270418,1770019848181,-574.47785007,0.00016438,2]
[404270419,1770019848191,-574.47785007,0.00016438,2]
[404270420,1770019848201,-574.47785007,0.00016438,2]
[404270421,1770019848211,-574.47785007,0.00016438,2]
[404270422,1770019848222,-574.47785007,0.00016438,2]
[404270423,1770019848231,-574.47785007,0.00016438,2]
[404270424,1770019848241,-574.47785007,0.00016438,2]
[404270425,1770019848251,-574.47785007,0.00016438,2]
[404270426,1770019848261,-574.47785007,0.00016438,2]
[404270427,1770019848271,-574.47785007,0.00016438,2]
[404270428,1770019848281,-574.47785007,0.00016438,2]
[404270429,1770019848291,-574.47785007,0.00016438,2]
[404270430,1770019848301,-574.47785007,0.00016438,2]
[404270431,1770019848311,-574.47785007,0.00016438,2]
[404270432,1770019848321,-574.47785007,0.00016438,2]
[404270433,1770019848331,-574.47785007,0.00016438,2]
[404270434,1770019848340,-574.47785007,0.00016438,2]
[404270435,1770019848351,-574.47785007,0.00016438,2]
[404270436,1770019848360,-574.47785007,0.00016438,2]
[404270437,1770019848370,-574.47785007,0.00016438,2]
[404270438,1770019848380,-574.47785007,0.00016438,2]
[404270439,1770019848390,-574.47785007,0.00016438,2]
[404270440,1770019848400,-574.47785007,0.00016438,2]
[404270441,1770019848409,-574.47785007,0.00016438,2]
[404270442,1770019848419,-574.47785007,0.00016438,2]
[404270443,1770019848429,-574.47785007,0.00016438,2]
[404270444,1770019848439,-574.47785007,0.00016438,2]
[404270445,1770019848449,-574.47785007,0.00016438,2]
[404270446,1770019848460,-574.47785007,0.00016438,2]
[404270447,1770019848469,-574.47785007,0.00016438,2]
[404270448,1770019848479,-574.47785007,0.00016438,2]
[404270449,1770019848489,-574.47785007,0.00016438,2]
[404270450,1770019848499,-574.47785007,0.00016438,2]
[404270451,1770019848508,-574.47785007,0.00016438,2]
[404270452,1770019848518,-574.47785007,0.00016438,2]
[404270453,1770019848528,-574.47785007,0.00016438,2]
[404270454,1770019848537,-574.47785007,0.00016438,2]
[404270455,1770019848547,-574.47785007,0.00016438,2]
[404270456,1770019848556,-2013.16,0.00016438,2]
[404270457,1770019848567,-250.55733734,0.00016438,2]
[404270458,1770019848580,-800.78453244,0.00016438,2]
[404270459,1770019848590,-200.0,0.0001651,2]
[404270460,1770019848599,-1500.0,0.00016568,2]
[404270461,1770019848611,-545.1454494,0.00016568,2]
[404270462,1770019848620,-1500.0,0.00016568,2]
[404270463,1770019848629,-1500.0,0.00016568,2]
[404270464,1770019848643,-1004.26216588,0.00016568,2]
[404270465,1770019848653,-343.08326797,0.00016568,2]
[404270466,1770019848663,-1500.0,0.00016568,2]
[404270467,1770019848673,-1500.0,0.00016568,2]
[404270468,1770019848683,-1500.0,0.00016568,2]
[404270469,1770019848693,-665.40489721,0.00016568,2]
[404270470,1770019848703,-1500.0,0.00016568,2]
[404270471,1770019848713,-1500.0,0.00016568,2]
[404270472,1770019848723,-1500.0,0.00016568,2]
[404270473,1770019848733,-505.45817911,0.00016568,2]
[404270474,1770019848743,-504.30163313,0.00016568,2]
[404270475,1770019848753,-622.87168328,0.00016568,2]
[404270476,1770019848763,-1500.0,0.00016568,2]
[404270477,1770019848772,-1500.0,0.00016568,2]
[404270478,1770019848782,-1500.0,0.00016568,2]
[404270479,1770019848791,-240.83933027,0.00016568,2]
[404270480,1770019848801,-1005.24936027,0.00016568,2]
[404270481,1770019848810,-1005.54193795,0.00016568,2]
[404270482,1770019848820,-505.38162593,0.00016568,2]
[404270483,1770019848829,-1500.0,0.00016568,2]
[404270484,1770019848907,-776.88278142,0.00016568,2]
[404270485,1770019848917,-504.6853335,0.00016568,2]
[404270486,1770019848927,-1500.0,0.00016568,2]
[404270487,1770019848937,-1500.0,0.00016568,2]
[404270488,1770019848946,-1500.0,0.00016568,2]
[404270489,1770019848955,-305.66548204,0.0001658,2]
[404270490,1770019848965,-773.23,0.00016627,2]
[404270491,1770019848974,-225.18697532,0.00016646,2]
[404270492,1770019848983,-924.60877284,0.00016646,2]
[404270493,1770019848992,-1536.04360649,0.00016646,2]
[404270494,1770019849002,-187.78006525,0.00016646,2]
[404270495,1770019849012,-225.18697532,0.00016646,2]
[404270496,1770019849021,-245.19,0.00016717,2]
[404270497,1770019849030,-163.0,0.0001672,2]
[404270498,1770019849039,-163.0,0.0001672,2]
[404270499,1770019849047,-163.0,0.0001672,2]
[404270500,1770019849057,-839.0,0.0001672,2]
[404270501,1770019849066,-1500.0,0.000168,2]
[404270502,1770019849075,-163.0,0.000169,3]
[404270503,1770019849085,-773.47,0.00016901,2]
[404270504,1770019849095,-160.02702936,0.00016912,2]
[404270505,1770019849105,-334.5472959,0.00016919,2]
[404270506,1770019849114,-10091.57601831,0.00016958,2]
[404270507,1770019849124,-956.83032725,0.00017,2]
[404270508,1770019849134,-300.0,0.00017,2]
[404270509,1770019849145,-163.0,0.0001704,2]
[404270510,1770019849154,-1899.6725397,0.00017056,2]
[404270511,1770019849164,-1988.36339388,0.00017116,2]
[404270512,1770019849173,-1756.98671009,0.00017116,2]
[404270513,1770019849183,-1008.230722,0.00017116,2]
[404270514,1770019849192,-2128.18837233,0.00017116,2]
[404270515,1770019849202,-2000.0,0.00017116,2]
[404270516,1770019849211,-2000.0,0.00017116,2]
[404270517,1770019849221,-2000.0,0.00017116,2]
[404270518,1770019849230,-315.28060531,0.00017116,2]
[404270519,1770019849240,-1143.18674336,0.00017116,2]
[404270520,1770019849250,-1474.64879752,0.00017116,2]
[404270521,1770019849259,-2000.0,0.00017116,2]
[404270522,1770019849269,-458.07275487,0.00017116,2]
[404270523,1770019849278,-2000.0,0.00017116,2]
[404270524,1770019849287,-1006.20015718,0.00017116,2]
[404270525,1770019849296,-2000.0,0.00017116,2]
[404270526,1770019849305,-1189.68040771,0.00017116,2]
[404270527,1770019849314,-1205.0,0.00017139,2]
[404270528,1770019849324,-925.751,0.00017139,2]
[404270529,1770019849333,-3253.0,0.00017139,2]
[404270530,1770019849342,-568.0,0.00017139,2]
[404270531,1770019849351,-2445.0,0.00017139,2]
[404270532,1770019849361,-500.0,0.00017139,2]
[404270533,1770019849370,-20357.73017596,0.0001715,2]
[404270534,1770019849379,-233.51889341,0.00017194,2]
[404270535,1770019849390,-277.94807481,0.00017194,2]
[404270536,1770019849400,-1592.87721993,0.00017194,2]
[404270537,1770019849410,-194.72792766,0.00017194,2]
[404270538,1770019849420,-233.51889341,0.00017194,2]
[404270539,1770019849429,-1000.0,0.00017213,2]
[404270540,1770019849438,-1000.0,0.0001726,2]
[404270541,1770019849447,-5841.0,0.00017314,2]
[404270542,1770019849456,-163.0,0.0001736,2]
[404270543,1770019849466,-249.0,0.000174,2]
[404270544,1770019849475,-1500.0,0.000174,2]
[404270545,1770019849485,-5841.0,0.00017405,2]
[404270546,1770019849495,-5888.0,0.00017472,2]
[404270547,1770019849505,-5841.0,0.00017513,2]
[404270548,1770019849515,-1000.0,0.00017534,2]
[404270549,1770019849525,-309.0,0.00017552,2]
[404270550,1770019849535,-163.0,0.00017555,2]
[404270551,1770019849544,-1000.0,0.00017557,2]
[404270552,1770019849554,-5888.0,0.00017575,2]
[404270553,1770019849565,-160.02702936,0.00017588,2]
[404270554,1770019849578,-5888.0,0.00017597,2]
[404270555,1770019849588,-1052.419,0.0001764,2]
[404270556,1770019849597,-3012.2001319,0.0001764,2]
[404270557,1770019849610,-1002.53462592,0.00017664,2]
[404270558,1770019849620,-947.23523297,0.00017664,2]
[404270559,1770019849630,-502.76473862,0.00017664,2]
[404270560,1770019849642,-1002.03881526,0.00017664,2]
[404270561,1770019849652,-2004.86417643,0.00017664,2]
[404270562,1770019849661,-1216.63993214,0.00017664,2]
[404270563,1770019849671,-163.0,0.0001768,2]
[404270564,1770019849680,-163.0,0.0001768,2]
[404270565,1770019849689,-163.0,0.0001768,2]
[404270566,1770019849699,-2844.0,0.000177,2]
[404270567,1770019849709,-25000.0,0.00017724,3]
[404270568,1770019849718,-368.0,0.00017725,2]
[404270569,1770019849728,-25000.0,0.00017733,3]
[404270570,1770019849738,-25000.0,0.00017742,3]
[404270571,1770019849748,-260.62456749,0.00017742,2]
[404270572,1770019849758,-1651.81367706,0.00017742,2]
[404270573,1770019849768,-201.93286099,0.00017742,2]
[404270574,1770019849777,-242.15909246,0.00017742,2]
[404270575,1770019849787,-25000.0,0.0001775,3]
[404270576,1770019849796,-25000.0,0.00017759,3]
[404270577,1770019849805,-150.0,0.00017767,2]
[404270578,1770019849814,-25000.0,0.00017768,3]
[404270579,1770019849823,-5193.05797685,0.00017768,2]
[404270580,1770019849832,-7026.3864,0.00017768,2]
[404270581,1770019849842,-25000.0,0.00017777,3]
[404270582,1770019849852,-5888.0,0.00017781,2]
[404270583,1770019849861,-25000.0,0.00017786,3]
[404270584,1770019849870,-151.0,0.00017788,2]
[404270585,1770019849879,-267.0,0.00017788,2]
[404270586,1770019849888,-150.0,0.00017788,2]
[404270587,1770019849897,-200.0,0.00017788,2]
[404270588,1770019849906,-277.537,0.00017788,2]
[404270589,1770019849915,-196.165,0.00017788,2]
[404270590,1770019849925,-229.207,0.00017788,2]
[404270591,1770019849934,-165.436,0.00017788,2]
[404270592,1770019849944,-158.676,0.00017788,2]
[404270593,1770019849953,-199.072,0.00017788,2]
[404270594,1770019849962,-285.665,0.00017788,2]
[404270595,1770019849971,-151.0,0.00017788,2]
[404270596,1770019849980,-151.345,0.00017788,2]
[404270597,1770019849990,-3481.0,0.00017788,2]
[404270598,1770019850000,-728.464,0.00017788,2]
[404270599,1770019850009,-1338.357,0.00017788,2]
[404270600,1770019850020,-162.264,0.00017788,2]
[404270601,1770019850029,-161.033,0.00017788,2]
[404270602,1770019850039,-25000.0,0.00017794,3]
[404270603,1770019850047,-162.40872272,0.00017795,2]
[404270604,1770019850057,-25000.0,0.00017803,3]
[404270605,1770019850066,-500.0,0.00017808,2]
[404270606,1770019850076,-1000.0,0.00017808,2]
[404270607,1770019850085,-25000.0,0.00017812,3]
[404270608,1770019850094,-3764.4246687,0.0001782,10]
[404270609,1770019850104,-2000.0,0.0001782,2]
[404270610,1770019850114,-2000.0,0.0001782,2]
[404270611,1770019850124,-25000.0,0.00017821,3]
[404270612,1770019850134,-25000.0,0.0001783,3]
[404270613,1770019850144,-150.0,0.00017833,2]
[404270614,1770019850154,-25000.0,0.00017838,3]
[404270615,1770019850163,-25000.0,0.00017847,3]
[404270616,1770019850173,-200.0,0.00017855,2]
[404270617,1770019850182,-25000.0,0.00017856,3]
[404270618,1770019850191,-200.0,0.00017856,2]
[404270619,1770019850201,-200.0,0.00017856,2]
[404270620,1770019850210,-500.0,0.00017863,2]
[404270621,1770019850220,-25000.0,0.00017865,3]
[404270622,1770019850230,-25000.0,0.00017874,3]
[404270623,1770019850240,-20357.73017596,0.00017879,2]
[404270624,1770019850249,-25000.0,0.00017882,3]
[404270625,1770019850258,-333.47,0.00017884,2]
[404270626,1770019850267,-25000.0,0.00017891,3]
[404270627,1770019850276,-270.03958254,0.000179,2]
[404270628,1770019850290,-25000.0,0.000179,3]
[404270629,1770019850299,-502.14,0.000179,3]